bitfinex/quotes_SOLUSD_20240816
["timestamp","ask_amount","ask_price","bid_price","bid_amount"]
[1723791155693,7.02779,144.88,144.84,7.76892679]
[1723791155854,0.12549,144.87,144.85,4.64624745]
[1723791156055,0.12549,144.87,144.84,3.31763356]
[1723791156265,0.12549,144.87,144.85,4.64630807]
[1723791156266,7.02829,144.87,144.85,4.64630807]
[1723791156481,0.12549,144.86,144.81,20.0]
[1723791156646,0.12549,144.86,144.82,19.63357452]
[1723791156993,0.12549,144.86,144.82,7.21468329]
[1723791157150,0.12549,144.86,144.83,4.64758614]
[1723791157484,0.12549,144.86,144.82,7.21468329]
[1723791158143,7.02869,144.86,144.82,7.21468329]
[1723791158344,0.12549,144.85,144.82,7.21468329]
[1723791159156,0.12549,144.85,144.8,4.64804018]
[1723791159480,7.02919,144.85,144.81,7.21519929]
[1723791160478,6.9051,144.82,144.81,7.21519929]
[1723791160667,6.9051,144.82,144.76,13.3964322]
[1723791160668,0.12549,144.8,144.75,23.01110426]
[1723791160873,0.12549,144.8,144.76,9.79342789]
[1723791161203,0.12549,144.8,144.76,11.86778]
[1723791161388,0.12549,144.8,144.76,7.2168322]
[1723791163266,0.12549,144.8,144.72,4.6506765]
[1723791163267,0.12549,144.8,144.72,2.0744046]
[1723791163485,0.12549,144.77,144.7,45.5279719]
[1723791163696,0.12549,144.77,144.72,7.21839232]
[1723791163909,0.12549,144.77,144.67,32.84678442]
[1723791163910,6.9084,144.75,144.67,32.84678442]
[1723791164068,6.9084,144.75,144.7,7.21938267]
[1723791164605,0.12549,144.74,144.69,7.21975765]
[1723791165176,7.15958,144.75,144.69,7.21975765]
[1723791165383,0.12549,144.73,144.69,7.21975765]
[1723791166176,0.25098,144.74,144.69,7.21975765]
[1723791166376,7.16008,144.74,144.69,7.21975765]
[1723791166801,7.03539,144.72,144.64,4.65487259]
[1723791167110,0.12549,144.71,144.67,7.22022544]
[1723791167404,0.12549,144.71,144.65,20.0]
[1723791167605,0.12549,144.71,144.67,7.22006768]
[1723791168121,0.12549,144.72,144.67,7.22006768]
[1723791168122,0.25098,144.72,144.67,7.22006768]
[1723791168279,0.25098,144.72,144.67,27.22006768]
[1723791168781,20.0,144.76,144.7,20.0]
[1723791168984,20.0,144.77,144.7,20.0]
[1723791169220,16.4622,144.78,144.71,20.25098]
[1723791169520,25.64,144.82,144.74,20.0]
[1723791169521,15.4081,144.82,144.74,20.0]
[1723791169693,6.243,144.83,144.75,20.12549]
[1723791170281,41.0481,144.86,144.77,20.0]
[1723791170282,6.9037,144.85,144.77,20.0]
[1723791170788,15.4081,144.86,144.77,20.0]
[1723791170980,15.4081,144.86,144.79,20.0]
[1723791171179,15.4081,144.86,144.77,40.0]
[1723791171409,22.3114,144.86,144.78,0.25098]
[1723791171610,22.3114,144.86,144.76,25.76549]
[1723791171611,6.9042,144.84,144.76,0.12549]
[1723791171788,6.9042,144.84,144.76,20.12549]
[1723791171993,6.9037,144.85,144.77,0.12549]
[1723791172206,22.3115,144.86,144.77,0.12549]
[1723791172386,54.5543,144.91,144.8,20.0]
[1723791172714,54.5543,144.91,144.83,20.0]
[1723791172715,29.3651,144.91,144.83,20.0]
[1723791172918,6.9013,144.9,144.83,20.0]
[1723791173104,6.9013,144.9,144.81,40.25098]
[1723791173619,22.4643,144.91,144.81,40.25098]
[1723791173620,1.72573824,144.89,144.81,20.12549]
[1723791173805,52.09,144.89,144.81,20.0]
[1723791173989,6.9028,144.87,144.79,6.3819]
[1723791174616,0.25098,144.86,144.79,6.3819]
[1723791175118,7.15428,144.86,144.79,6.3819]
[1723791175717,6.9038,144.85,144.79,6.3819]
[1723791176021,7.15518,144.84,144.76,20.0]
[1723791176227,0.12549,144.83,144.77,20.0]
[1723791176541,7.15568,144.83,144.76,20.0]
[1723791177793,0.12549,144.83,144.76,20.0]
[1723791178920,0.12549,144.83,144.8,20.0]
[1723791179091,6.9033,144.86,144.8,20.0]
[1723791179291,7.02919,144.85,144.8,20.0]
[1723791180018,7.02919,144.85,144.79,20.0]
[1723791180203,7.02919,144.85,144.77,20.0]
[1723791180419,7.02919,144.85,144.78,0.25098]
[1723791180632,6.9043,144.84,144.78,0.12549]
[1723791180945,6.9043,144.84,144.77,20.0]
[1723791180946,7.03019,144.83,144.77,20.0]
[1723791181241,7.02969,144.84,144.77,20.0]
[1723791181423,0.12549,144.83,144.76,20.0]
[1723791181625,0.12549,144.83,144.77,20.0]
[1723791181929,0.12549,144.83,144.8,20.0]
[1723791182129,7.02969,144.84,144.8,20.0]
[1723791182342,7.02969,144.84,144.77,20.0]
[1723791182521,7.03019,144.83,144.75,26.13009]
[1723791182845,6.9047,144.83,144.76,0.25098]
[1723791183637,7.03059,144.82,144.77,20.0]
[1723791183848,0.12549,144.82,144.77,20.0]
[1723791184742,0.12549,144.82,144.75,26.0046]
[1723791184913,34.5066,144.9,144.8,20.0]
[1723791185111,6.9033,144.86,144.8,20.0]
[1723791185415,6.9037,144.85,144.8,20.0]
[1723791185618,6.9033,144.86,144.8,20.0]
[1723791185950,71.8068,144.91,144.82,20.0]
[1723791186316,71.8068,144.91,144.8,20.0]
[1723791186535,6.9033,144.86,144.8,20.0]
[1723791187246,0.12549,144.85,144.8,20.0]
[1723791187620,6.9033,144.86,144.8,20.0]
[1723791188933,7.02919,144.85,144.79,0.12549]
[1723791189139,6.9037,144.85,144.79,20.12549]
[1723791189325,6.9041,144.84,144.78,0.12549]
[1723791189530,6.9041,144.84,144.78,0.25098]
[1723791189938,6.9046,144.83,144.75,6.0046]
[1723791190139,1.72652063,144.82,144.75,26.0046]
[1723791190426,6.9046,144.83,144.75,6.0046]
[1723791190627,6.9046,144.83,144.75,26.0046]
[1723791191158,6.9046,144.83,144.77,20.0]
[1723791192148,6.9046,144.83,144.76,0.12549]
[1723791192326,6.9046,144.83,144.79,20.0]
[1723791193924,6.9046,144.83,144.76,0.25098]
[1723791194258,6.9062,144.8,144.74,27.21314225]
[1723791194441,0.12549,144.81,144.74,7.21314225]
[1723791194640,7.03139,144.81,144.74,27.21314225]
[1723791194855,0.12549,144.8,144.74,27.21314225]
[1723791195256,7.03149,144.8,144.74,7.21314225]
[1723791195477,7.03209,144.79,144.74,7.21314225]
[1723791195792,0.12549,144.8,144.75,20.0]
[1723791196371,0.12549,144.8,144.74,7.21314225]
[1723791196372,7.03149,144.8,144.74,7.21314225]
[1723791196974,6.9065,144.79,144.74,7.21314225]
[1723791197151,7.03159,144.8,144.74,27.21314225]
[1723791197358,7.03159,144.8,144.74,7.21314225]
[1723791197574,0.12549,144.8,144.74,7.21314225]
[1723791197846,0.12549,144.79,144.74,7.21314225]
[1723791198050,0.25098,144.79,144.74,7.21314225]
[1723791198461,0.25098,144.79,144.74,27.21314225]
[1723791198661,0.25098,144.79,144.75,2.07479379]
[1723791198850,0.25098,144.79,144.74,27.21314225]
[1723791199052,0.12549,144.79,144.74,27.21314225]
[1723791199261,32.1,144.82,144.75,2.07479398]
[1723791199262,7.15708,144.8,144.75,2.07479398]
[1723791199464,7.15708,144.8,144.74,27.21314225]
[1723791199677,7.15708,144.8,144.75,2.07483762]
[1723791199875,7.15708,144.8,144.74,27.21314225]
[1723791200177,7.15708,144.8,144.75,4.6515818]
[1723791200480,7.15708,144.8,144.74,27.21314225]
[1723791200684,7.15708,144.8,144.75,4.65180395]
[1723791200857,7.15708,144.8,144.74,34.99133352]
[1723791200858,7.15708,144.8,144.74,27.21314225]
[1723791201055,7.15708,144.8,144.75,4.65206442]
[1723791201376,8.63358877,144.79,144.74,7.21314225]
[1723791201571,6.9075,144.77,144.74,7.21314225]
[1723791201769,6.9075,144.77,144.72,3.32018724]
[1723791201770,1.85273217,144.76,144.72,3.32018724]
[1723791201954,1.85273217,144.76,144.73,4.65396406]
[1723791201955,1.72724217,144.76,144.73,4.65396406]
[1723791202155,0.12549,144.77,144.71,35.00200738]
[1723791202156,0.12549,144.75,144.71,7.22060104]
[1723791202374,7.03309,144.77,144.72,4.65455237]
[1723791202576,0.12549,144.76,144.71,7.22060104]
[1723791202779,0.12549,144.75,144.71,7.22060104]
[1723791202984,0.25098,144.75,144.69,7.76475618]
[1723791203292,0.12549,144.73,144.7,4.63922928]
[1723791203455,0.25098,144.73,144.68,7.22307259]
[1723791203653,0.12549,144.73,144.69,4.63930065]
[1723791203876,0.12549,144.73,144.7,2.07562489]
[1723791204078,0.25098,144.73,144.68,7.22307259]
[1723791204279,0.25098,144.73,144.69,4.63922523]
[1723791204583,0.12549,144.73,144.7,2.0756172]
[1723791204786,0.12549,144.73,144.69,20.0]
[1723791204787,0.25098,144.74,144.69,20.0]
[1723791205092,0.12549,144.74,144.7,2.07560044]
[1723791205290,7.15938,144.75,144.69,20.0]
[1723791205585,7.15938,144.75,144.7,2.07560057]
[1723791205776,7.15938,144.75,144.69,20.0]
[1723791206554,7.15938,144.75,144.7,2.07557529]
[1723791206787,0.25098,144.75,144.71,20.0]
[1723791207079,0.12549,144.75,144.71,20.0]
[1723791207255,48.1433,144.78,144.71,20.0]
[1723791207256,22.9507,144.78,144.71,20.0]
[1723791207454,16.0433,144.78,144.7,3.32081246]
[1723791207673,16.0433,144.78,144.71,4.63801171]
[1723791207884,6.9075,144.77,144.7,20.0]
[1723791208081,6.9075,144.77,144.7,27.76357105]
[1723791208383,6.9075,144.77,144.71,2.0753875]
[1723791208584,6.9075,144.77,144.7,20.0]
[1723791208792,6.9075,144.77,144.71,2.0753829]
[1723791209082,6.9075,144.77,144.7,20.0]
[1723791209488,7.03349,144.76,144.69,3.44611001]
[1723791209673,7.03349,144.76,144.7,4.63818659]
[1723791209872,7.03349,144.76,144.69,20.12549]
[1723791210063,0.12549,144.75,144.7,4.63847258]
[1723791210398,0.12549,144.75,144.7,2.56298885]
[1723791210598,0.12549,144.75,144.69,23.32062001]
[1723791210803,0.12549,144.75,144.7,4.63794029]
[1723791210971,0.12549,144.75,144.69,20.0]
[1723791211171,0.12549,144.75,144.68,27.22307259]
[1723791211379,0.12549,144.75,144.69,4.6390482]
[1723791211590,0.12549,144.74,144.69,2.56342734]
[1723791211787,0.12549,144.74,144.68,7.22307259]
[1723791211788,39.13439,144.74,144.68,7.22307259]
[1723791211972,0.12549,144.73,144.68,7.22307259]
[1723791212176,0.12549,144.73,144.68,9.78682333]
[1723791212389,24.25988,144.74,144.68,9.78682333]
[1723791212677,24.25988,144.74,144.68,9.78683016]
[1723791213605,31.16878,144.74,144.68,9.78683016]
[1723791214499,31.16878,144.74,144.68,7.22307259]
[1723791214710,24.25988,144.74,144.7,20.0]
[1723791215597,24.25988,144.74,144.68,27.22307259]
[1723791215598,6.909,144.74,144.68,27.22307259]
[1723791215907,32.619,144.74,144.68,22.56322713]
[1723791216070,32.619,144.74,144.68,29.7845363]
[1723791216410,32.619,144.74,144.68,31.86021651]
[1723791217007,33.3113,144.78,144.7,20.0]
[1723791217200,6.9084,144.76,144.7,20.0]
[1723791217583,6.9084,144.76,144.69,4.63819716]
[1723791217912,32.6184,144.76,144.69,4.63818487]
[1723791218288,0.12549,144.75,144.69,4.63818487]
[1723791218503,7.15948,144.75,144.68,27.34679917]
[1723791218685,7.15948,144.75,144.68,29.78381383]
[1723791218885,7.15948,144.75,144.68,27.22130917]
[1723791219278,25.71,144.74,144.68,29.78381383]
[1723791219482,25.71,144.74,144.68,27.22130917]
[1723791219483,32.6189,144.74,144.68,27.22130917]
[1723791220399,6.9083,144.76,144.69,4.63731767]
[1723791220705,32.6183,144.76,144.69,2.56169139]
[1723791220885,6.9086,144.75,144.69,2.56169139]
[1723791221207,0.12549,144.74,144.69,2.56169139]
[1723791221389,0.25098,144.74,144.69,2.56169139]
[1723791221890,0.25098,144.74,144.68,27.22130917]
[1723791221891,7.16008,144.74,144.68,27.22130917]
[1723791222090,7.16008,144.74,144.69,2.07560262]
[1723791222293,7.16008,144.74,144.68,27.22130917]
[1723791222479,0.25098,144.74,144.69,2.07560262]
[1723791222889,0.12549,144.74,144.69,2.07560262]
[1723791223083,6.9086,144.75,144.69,2.56126786]
[1723791223284,0.12549,144.75,144.7,20.0]
[1723791223491,0.12549,144.75,144.69,4.63639495]
[1723791223682,0.12549,144.75,144.7,2.07547613]
[1723791223879,0.12549,144.75,144.69,4.63634627]
[1723791224083,0.12549,144.75,144.68,30.54204774]
[1723791224279,0.12549,144.75,144.69,4.63630461]
[1723791224592,6.9094,144.73,144.68,9.78173972]
[1723791224787,0.12549,144.72,144.67,2.56043055]
[1723791224972,1.85325904,144.72,144.67,7.2193307]
[1723791225179,1.85325904,144.72,144.67,9.29521267]
[1723791225426,8.76325904,144.72,144.67,7.2193307]
[1723791225618,8.76325904,144.72,144.67,9.29521267]
[1723791225907,0.12549,144.72,144.67,7.2193307]
[1723791226120,0.12549,144.72,144.67,9.78036785]
[1723791226308,0.12549,144.72,144.67,7.2193307]
[1723791226604,0.12549,144.72,144.67,9.77949804]
[1723791226813,0.12549,144.72,144.67,7.2193307]
[1723791227008,0.12549,144.72,144.67,9.77949804]
[1723791227227,0.12549,144.72,144.67,7.2193307]
[1723791227534,0.12549,144.71,144.67,9.29520626]
[1723791227729,0.12549,144.71,144.63,36.62856858]
[1723791227730,6.9108,144.7,144.66,2.07605809]
[1723791227935,15.71468,144.72,144.67,20.0]
[1723791227936,15.58919,144.72,144.67,20.0]
[1723791228397,15.58919,144.72,144.67,22.5610134]
[1723791228595,15.58919,144.72,144.67,20.0]
[1723791228821,15.58919,144.72,144.67,22.5610134]
[1723791228995,15.58919,144.72,144.67,20.0]
[1723791229220,15.4637,144.72,144.68,2.07574831]
[1723791229416,15.4637,144.72,144.67,2.07574831]
[1723791229662,15.4637,144.72,144.66,2.56027669]
[1723791229857,0.12549,144.71,144.67,4.63605942]
[1723791230154,0.25098,144.71,144.66,2.56027669]
[1723791230368,0.12549,144.71,144.67,4.63606177]
[1723791230519,0.12549,144.71,144.66,2.56027669]
[1723791230721,0.12549,144.71,144.67,4.63607242]
[1723791230954,0.12549,144.71,144.66,2.56027669]
[1723791231253,0.12549,144.71,144.67,4.63607304]
[1723791231551,0.12549,144.71,144.66,3.32158667]
[1723791231758,0.12549,144.71,144.67,4.63608071]
[1723791231955,0.12549,144.71,144.68,20.0]
[1723791232160,16.3962,144.76,144.71,20.0]
[1723791232937,23.3041,144.76,144.71,20.0]
[1723791233433,16.3962,144.76,144.71,20.0]
[1723791234355,18.12345502,144.76,144.7,3.3207553]
[1723791234657,23.3042,144.76,144.71,4.63431925]
[1723791234845,23.3042,144.76,144.69,7.7567245]
[1723791235037,16.3962,144.76,144.7,4.63436156]
[1723791235238,16.3962,144.76,144.71,4.63436156]
[1723791235441,16.3962,144.76,144.7,27.75665859]
[1723791235656,16.3962,144.76,144.71,4.63438777]
[1723791235960,16.3962,144.76,144.7,20.0]
[1723791236266,16.3962,144.76,144.71,4.6356807]
[1723791236452,16.3962,144.76,144.72,22.07547206]
[1723791236654,16.3962,144.76,144.74,20.0]
[1723791237155,0.25098,144.75,144.72,20.0]
[1723791237361,0.25098,144.75,144.73,4.63501453]
[1723791237669,0.25098,144.75,144.7,42.43240822]
[1723791237854,0.25098,144.75,144.71,12.39248273]
[1723791238062,0.25098,144.75,144.72,7.95531576]
[1723791238239,0.25098,144.75,144.73,4.6348468]
[1723791238434,0.25098,144.75,144.71,7.75890209]
[1723791238656,0.25098,144.75,144.72,4.63561527]
[1723791238869,0.25098,144.75,144.7,20.0]
[1723791238870,0.25098,144.75,144.73,4.63561527]
[1723791239165,0.25098,144.75,144.7,36.6285107]
[1723791239345,0.25098,144.75,144.71,12.39373453]
[1723791239671,0.25098,144.75,144.72,12.39373453]
[1723791239844,0.25098,144.75,144.73,4.63529056]
[1723791240177,0.25098,144.75,144.71,4.43894486]
[1723791240471,0.25098,144.75,144.72,4.63743875]
[1723791240651,0.25098,144.75,144.73,2.07549517]
[1723791240841,7.15948,144.75,144.71,4.44155069]
[1723791241174,7.15948,144.75,144.69,10.24745915]
[1723791241175,7.15948,144.75,144.72,4.63776784]
[1723791241337,7.15948,144.75,144.69,10.24745915]
[1723791241540,7.15948,144.75,144.7,18.20928638]
[1723791241867,7.15948,144.75,144.71,12.40043275]
[1723791242054,7.15948,144.75,144.72,4.63776643]
[1723791242254,7.15948,144.75,144.73,2.07557779]
[1723791242573,0.12549,144.73,144.7,5.80901586]
[1723791242875,0.12549,144.73,144.71,12.40088783]
[1723791242876,0.25098,144.73,144.71,12.40088783]
[1723791243070,0.25098,144.73,144.72,4.63793434]
[1723791243446,6.9085,144.75,144.72,4.63804815]
[1723791243661,0.12549,144.74,144.73,2.07559121]
[1723791244181,0.12549,144.74,144.73,4.63873833]
[1723791244182,7.03439,144.74,144.73,4.63873833]
[1723791244385,7.03439,144.74,144.73,4.63881895]
[1723791244879,8.88747213,144.74,144.73,4.63881895]
[1723791245086,0.12549,144.72,144.7,4.44682948]
[1723791245265,0.25098,144.72,144.71,4.64120159]
[1723791245466,7.16078,144.72,144.71,4.64120159]
[1723791246669,7.16078,144.72,144.71,7.96254469]
[1723791246856,7.16078,144.72,144.71,4.64120159]
[1723791247265,7.16078,144.72,144.71,7.96261643]
[1723791247466,0.25098,144.72,144.71,12.40921869]
[1723791247904,6.9095,144.73,144.71,12.40921869]
[1723791248086,6.9095,144.73,144.72,4.64120159]
[1723791248087,7.03499,144.73,144.72,4.64120159]
[1723791249398,7.16048,144.73,144.72,4.64120159]
[1723791250815,7.16048,144.73,144.67,7.22083144]
[1723791250966,0.12549,144.72,144.69,10.25989545]
[1723791251277,7.03499,144.73,144.7,18.21832611]
[1723791251455,7.03499,144.73,144.71,12.40565235]
[1723791251664,0.12549,144.72,144.69,10.25989545]
[1723791251870,0.12549,144.72,144.7,18.21818075]
[1723791252081,0.12549,144.72,144.71,12.40557741]
[1723791254806,16.18,144.8,144.73,20.0]
[1723791254978,16.18,144.8,144.75,20.0]
[1723791255305,6.9051,144.82,144.76,12.3913848]
[1723791255516,6.9051,144.82,144.77,4.6344932]
[1723791255803,6.9056,144.81,144.78,2.55910045]
[1723791256102,6.9056,144.81,144.75,10.24255616]
[1723791256313,0.12549,144.8,144.76,12.38959022]
[1723791256606,0.12549,144.8,144.77,4.63372173]
[1723791256804,0.12549,144.8,144.78,4.63372173]
[1723791256990,0.12549,144.8,144.75,10.24035123]
[1723791257194,0.12549,144.8,144.77,20.0]
[1723791257395,0.12549,144.8,144.78,2.07495982]
[1723791257589,0.12549,144.8,144.77,20.0]
[1723791257912,0.12549,144.8,144.78,2.0749592]
[1723791258087,0.25098,144.8,144.77,20.0]
[1723791259015,0.25098,144.8,144.75,20.0]
[1723791259226,25.68,144.79,144.76,12.38970346]
[1723791259420,25.80549,144.77,144.71,22.42772685]
[1723791259623,25.80549,144.77,144.72,32.39640814]
[1723791259624,0.25098,144.76,144.72,32.39640814]
[1723791259831,0.25098,144.76,144.71,10.24180069]
[1723791259832,0.25098,144.76,144.73,32.39640814]
[1723791260127,0.25098,144.76,144.74,4.63625165]
[1723791260311,0.25098,144.76,144.73,20.0]
[1723791260510,0.25098,144.76,144.69,25.80261575]
[1723791260511,0.12549,144.76,144.74,2.07538009]
[1723791260692,22.6512,144.78,144.71,22.4234742]
[1723791261020,0.12549,144.79,144.75,20.0]
[1723791261195,0.12549,144.79,144.76,4.63449868]
[1723791261395,0.12549,144.79,144.75,20.0]
[1723791261611,0.12549,144.79,144.76,2.0751254]
[1723791261927,0.12549,144.79,144.75,20.0]
[1723791262093,0.12549,144.8,144.76,4.6325545]
[1723791262422,0.25098,144.8,144.75,20.0]
[1723791262622,0.25098,144.8,144.76,2.55718076]
[1723791262951,0.25098,144.8,144.75,20.0]
[1723791263233,0.25098,144.8,144.76,4.63220571]
[1723791263433,0.25098,144.8,144.75,20.0]
[1723791263596,0.25098,144.8,144.76,2.07506441]
[1723791263929,0.25098,144.8,144.75,20.0]
[1723791264101,0.25098,144.8,144.76,2.07511006]
[1723791264303,0.25098,144.8,144.75,20.0]
[1723791264506,0.25098,144.8,144.76,2.07511006]
[1723791264705,0.25098,144.8,144.74,4.43439358]
[1723791265024,0.25098,144.8,144.75,4.63296696]
[1723791265224,0.25098,144.8,144.73,20.0]
[1723791265441,0.25098,144.8,144.74,12.38746174]
[1723791265610,0.25098,144.8,144.73,20.0]
[1723791265611,0.25098,144.8,144.75,4.63293506]
[1723791265814,0.25098,144.8,144.73,20.0]
[1723791266004,0.25098,144.8,144.74,12.38744654]
[1723791266201,0.25098,144.8,144.75,4.6329295]
[1723791266418,0.25098,144.8,144.73,20.0]
[1723791266594,7.15708,144.8,144.74,12.38653424]
[1723791266799,0.12549,144.78,144.75,2.07516963]
[1723791266995,0.12549,144.78,144.73,20.0]
[1723791267208,0.12549,144.78,144.74,7.95301199]
[1723791267407,0.25098,144.78,144.75,4.63388858]
[1723791267595,0.25098,144.78,144.73,20.0]
[1723791267825,0.25098,144.78,144.74,7.95486777]
[1723791268024,0.25098,144.78,144.75,4.63459341]
[1723791268222,0.25098,144.78,144.73,20.0]
[1723791268426,0.25098,144.78,144.74,7.95512411]
[1723791268624,0.25098,144.78,144.75,2.07512644]
[1723791268816,0.25098,144.78,144.73,20.0]
[1723791269011,0.25098,144.78,144.74,7.9553516]
[1723791269212,1.97803066,144.78,144.75,2.07517024]
[1723791269424,1.97803066,144.78,144.73,20.0]
[1723791269608,0.25098,144.78,144.74,7.95564097]
[1723791269810,0.25098,144.78,144.75,4.63536858]
[1723791270031,6.9061,144.8,144.76,20.0]
[1723791270326,0.25098,144.79,144.73,27.75838399]
[1723791270530,0.25098,144.79,144.74,7.95537756]
[1723791270729,0.25098,144.79,144.75,4.63518019]
[1723791271030,0.25098,144.79,144.73,20.0]
[1723791271403,0.12549,144.79,144.73,20.0]
[1723791271598,0.12549,144.79,144.74,7.95538802]
[1723791271806,16.3981,144.85,144.79,20.0]
[1723791272111,23.3019,144.85,144.79,20.0]
[1723791272322,16.3981,144.85,144.79,20.0]
[1723791272739,16.3981,144.85,144.8,2.07444018]
[1723791272908,16.3981,144.85,144.79,20.0]
[1723791273110,16.3981,144.85,144.82,20.0]
[1723791273319,23.3018,144.85,144.82,20.0]
[1723791273707,6.9032,144.86,144.82,20.0]
[1723791275202,6.9028,144.87,144.79,24.63161298]
[1723791275401,6.9032,144.86,144.8,20.0]
[1723791275606,6.9032,144.86,144.78,20.12549]
[1723791275607,6.9037,144.85,144.78,20.12549]
[1723791275828,6.9037,144.85,144.79,4.63148916]
[1723791276051,6.9037,144.85,144.78,20.0]
[1723791276243,6.9037,144.85,144.79,4.63149941]
[1723791276426,0.25098,144.84,144.78,20.0]
[1723791276623,0.25098,144.84,144.77,4.43323548]
[1723791276624,0.25098,144.84,144.81,20.0]
[1723791276825,0.25098,144.84,144.79,20.0]
[1723791277911,0.25098,144.84,144.81,20.0]
[1723791278417,7.15518,144.84,144.79,20.0]
[1723791279022,6.9047,144.83,144.77,4.43330277]
[1723791279225,0.25098,144.82,144.75,24.43561009]
[1723791279534,0.25098,144.82,144.76,24.63322613]
[1723791279740,0.25098,144.82,144.76,20.0]
[1723791280470,25.93098,144.82,144.75,20.0]
[1723791280639,25.93098,144.82,144.76,2.07479915]
[1723791280944,25.93098,144.82,144.78,20.0]
[1723791281945,25.80549,144.82,144.78,20.0]
[1723791282371,0.12549,144.82,144.8,20.0]
[1723791282574,32.5842,144.84,144.8,20.0]
[1723791284686,32.5851,144.82,144.76,2.07469278]
[1723791284856,32.5851,144.82,144.75,20.0]
[1723791285264,32.5851,144.82,144.76,20.0]
[1723791287362,0.12549,144.81,144.76,20.0]
[1723791287563,7.15658,144.81,144.76,20.0]
[1723791287759,7.03109,144.81,144.76,20.0]
[1723791291052,25.80549,144.8,144.76,20.0]
[1723791291387,25.80549,144.8,144.74,26.0927]
[1723791291561,25.80549,144.8,144.76,20.0]
[1723791291761,25.80549,144.8,144.74,26.0927]
[1723791291984,10.27,144.79,144.76,20.0]
[1723791292151,10.27,144.79,144.74,9.41261462]
[1723791292152,10.27,144.79,144.74,20.0]
[1723791292357,10.27,144.79,144.75,2.07495192]
[1723791292658,10.27,144.79,144.74,20.0]
[1723791292860,10.27,144.79,144.75,2.07496709]
[1723791293161,10.27,144.79,144.74,20.0]
[1723791293364,10.27,144.79,144.76,20.0]
[1723791293767,10.27,144.79,144.74,20.0]
[1723791294060,10.27,144.79,144.75,2.55645988]
[1723791294275,10.27,144.79,144.74,20.0]
[1723791294466,10.27,144.79,144.75,4.63183818]
[1723791294664,10.27,144.79,144.74,20.0]
[1723791294879,10.27,144.79,144.75,4.63171363]
[1723791295061,10.27,144.79,144.74,20.0]
[1723791295257,10.27,144.79,144.75,4.63169003]
[1723791295562,10.27,144.79,144.76,2.07496647]
[1723791295758,10.27,144.79,144.77,2.07480945]
[1723791295989,10.27,144.79,144.74,25.79561642]
[1723791296171,10.27,144.79,144.76,20.0]
[1723791296371,10.27,144.79,144.77,4.63078458]
[1723791296558,10.27,144.79,144.76,20.0]
[1723791296763,10.27,144.79,144.77,4.63074362]
[1723791296967,10.27,144.79,144.76,20.0]
[1723791297202,10.27,144.79,144.77,4.63072476]
[1723791297384,10.27,144.79,144.78,2.07474952]
[1723791297691,10.27,144.79,144.78,2.07474829]
[1723791297903,7.03109,144.81,144.78,2.07474829]
[1723791298087,10.27,144.8,144.76,20.0]
[1723791298272,10.27,144.8,144.77,7.95051429]
[1723791298474,10.27,144.8,144.78,4.63094844]
[1723791298701,10.27,144.8,144.76,20.0]
[1723791298903,10.27,144.8,144.78,20.0]
[1723791299199,10.27,144.8,144.79,2.07468426]
[1723791299907,10.27,144.8,144.79,4.63100545]
[1723791300400,10.27,144.8,144.79,7.95042122]
[1723791300581,25.3134,144.82,144.8,20.0]
[1723791301887,0.12549,144.81,144.77,10.22995486]
[1723791302179,10.27,144.8,144.78,7.94293136]
[1723791302396,10.27,144.8,144.79,4.62355915]
[1723791302704,10.27,144.8,144.79,2.07460763]
[1723791303500,10.27,144.8,144.77,20.0]
[1723791304300,10.27,144.8,144.79,20.0]
[1723791305983,10.27,144.8,144.77,2.55038085]
[1723791306189,10.27,144.8,144.76,20.0]